bitfinex-derivatives/quotes_BTCF0:USTF0_20251228
["timestamp","ask_amount","ask_price","bid_price","bid_amount"]
[1766929516050,0.10692,87971.0,87965.0,0.05]
[1766929516250,0.02458763,87970.0,87965.0,0.05]
[1766929516452,0.02458763,87969.0,87965.0,0.05]
[1766929516753,0.02458763,87968.0,87965.0,0.05]
[1766929516945,0.10692,87971.0,87965.0,0.05]
[1766929517149,0.02458779,87970.0,87965.0,0.05]
[1766929517447,0.02458779,87969.0,87965.0,0.05]
[1766929517659,0.10692,87971.0,87965.0,0.05]
[1766929517956,0.02458776,87970.0,87965.0,0.05]
[1766929518257,0.02458776,87969.0,87965.0,0.05]
[1766929518458,0.10692,87971.0,87965.0,0.05]
[1766929518658,0.02453015,87970.0,87965.0,0.05]
[1766929518853,0.02453015,87969.0,87965.0,0.05]
[1766929519055,0.10692,87971.0,87965.0,0.05]
[1766929519258,0.02453015,87970.0,87965.0,0.05]
[1766929519559,0.02453015,87969.0,87965.0,0.05]
[1766929519752,0.10692,87971.0,87965.0,0.05]
[1766929519953,0.02453048,87970.0,87965.0,0.05]
[1766929520153,0.02453048,87969.0,87965.0,0.05]
[1766929520356,0.10692,87971.0,87965.0,0.05]
[1766929520655,0.02453091,87970.0,87965.0,0.05]
[1766929520954,0.02453091,87969.0,87965.0,0.05]
[1766929521259,0.10692,87971.0,87965.0,0.05]
[1766929521461,0.02453144,87970.0,87965.0,0.05]
[1766929521657,0.02453144,87969.0,87965.0,0.05]
[1766929521860,0.10692,87971.0,87965.0,0.05]
[1766929522059,0.02453144,87970.0,87965.0,0.05]
[1766929522359,0.02453144,87969.0,87965.0,0.05]
[1766929522560,0.10692,87971.0,87965.0,0.05]
[1766929522860,0.02453211,87970.0,87965.0,0.05]
[1766929523062,0.02453211,87969.0,87965.0,0.05]
[1766929523264,0.10692,87971.0,87965.0,0.05]
[1766929523562,0.02453239,87970.0,87965.0,0.05]
[1766929523862,0.02453239,87969.0,87965.0,0.05]
[1766929524157,0.10692,87971.0,87965.0,0.05]
[1766929524465,0.02453288,87970.0,87965.0,0.05]
[1766929524653,0.02453288,87969.0,87965.0,0.05]
[1766929524853,0.10692,87971.0,87965.0,0.05]
[1766929525055,0.02453288,87970.0,87965.0,0.05]
[1766929525262,0.02453288,87969.0,87965.0,0.05]
[1766929525462,0.02453288,87968.0,87965.0,0.05]
[1766929525653,0.10692,87971.0,87965.0,0.05]
[1766929525853,0.02453351,87970.0,87965.0,0.05]
[1766929526054,0.02453351,87969.0,87965.0,0.05]
[1766929526259,0.02453351,87968.0,87965.0,0.05]
[1766929526561,0.10692,87971.0,87965.0,0.05]
[1766929526766,0.02453433,87970.0,87965.0,0.05]
[1766929526954,0.02453433,87969.0,87965.0,0.05]
[1766929527154,0.02453433,87968.0,87965.0,0.05]
[1766929527359,0.10692,87971.0,87965.0,0.05]
[1766929527557,0.02453541,87970.0,87965.0,0.05]
[1766929527762,0.02453541,87969.0,87965.0,0.05]
[1766929528062,0.02453541,87968.0,87965.0,0.05]
[1766929528263,0.10692,87971.0,87965.0,0.05]
[1766929528561,0.02453711,87970.0,87965.0,0.05]
[1766929528762,0.02453711,87969.0,87965.0,0.05]
[1766929528963,0.02453711,87968.0,87965.0,0.05]
[1766929529164,0.10692,87971.0,87965.0,0.05]
[1766929529365,0.02453721,87970.0,87965.0,0.05]
[1766929529565,0.02453721,87969.0,87965.0,0.05]
[1766929529764,0.02453721,87968.0,87965.0,0.05]
[1766929530063,0.10692,87971.0,87965.0,0.05]
[1766929530265,0.02453722,87970.0,87965.0,0.05]
[1766929530560,0.02453722,87969.0,87965.0,0.05]
[1766929530762,0.02453722,87968.0,87965.0,0.05]
[1766929531063,0.10692,87971.0,87965.0,0.05]
[1766929531257,0.02453731,87970.0,87965.0,0.05]
[1766929531457,0.02453731,87969.0,87965.0,0.05]
[1766929531658,0.02453731,87968.0,87965.0,0.05]
[1766929531858,0.10692,87971.0,87965.0,0.05]
[1766929532059,0.02453731,87970.0,87965.0,0.05]
[1766929532263,0.02453731,87969.0,87965.0,0.05]
[1766929532464,0.02453731,87968.0,87965.0,0.05]
[1766929532656,0.10692,87971.0,87965.0,0.05]
[1766929532957,0.02453747,87970.0,87965.0,0.05]
[1766929533266,0.02453747,87969.0,87965.0,0.05]
[1766929533466,0.02453747,87968.0,87965.0,0.05]
[1766929533667,0.1182976,87971.0,87965.0,0.05]
[1766929533965,0.02453771,87970.0,87965.0,0.05]
[1766929534166,0.02453771,87969.0,87965.0,0.05]
[1766929534367,0.02453771,87968.0,87965.0,0.05]
[1766929534567,0.1182976,87971.0,87965.0,0.05]
[1766929534863,0.02453778,87970.0,87965.0,0.05]
[1766929535169,0.02453778,87969.0,87965.0,0.05]
[1766929535358,0.02453778,87968.0,87965.0,0.05]
[1766929535558,0.1182976,87971.0,87965.0,0.05]
[1766929535758,0.02453781,87970.0,87965.0,0.05]
[1766929535968,0.02453781,87969.0,87965.0,0.05]
[1766929536167,0.02453781,87968.0,87965.0,0.05]
[1766929536467,0.1182976,87971.0,87965.0,0.05]
[1766929536667,0.02453788,87970.0,87965.0,0.05]
[1766929536869,0.02453788,87969.0,87965.0,0.05]
[1766929537067,0.02453788,87968.0,87965.0,0.05]
[1766929537264,0.1182976,87971.0,87965.0,0.05]
[1766929537467,0.02453796,87970.0,87965.0,0.05]
[1766929537668,0.02453796,87969.0,87965.0,0.05]
[1766929537966,0.02453796,87968.0,87965.0,0.05]
[1766929538268,0.1182976,87971.0,87965.0,0.05]
[1766929538462,0.02453801,87970.0,87965.0,0.05084977]
[1766929538661,0.01571328,87969.0,87965.0,0.05084977]
[1766929538870,0.1182976,87971.0,87965.0,0.05084977]
[1766929549576,0.1182976,87971.0,87965.0,0.08084977]
[1766929550573,0.1182976,87971.0,87965.0,0.05084977]
[1766929550770,0.02439733,87970.0,87965.0,0.05084977]
[1766929550974,0.1182976,87971.0,87965.0,0.05084977]
[1766929550975,0.02439733,87969.0,87965.0,0.05084977]
[1766929551169,0.02439733,87968.0,87965.0,0.05084977]
[1766929551469,0.02439733,87967.0,87965.0,0.05084977]
[1766929551670,0.02439733,87966.0,87965.0,0.05084977]
[1766929553680,0.11837012,87971.0,87965.0,0.05084977]
[1766929553981,0.02439738,87970.0,87965.0,0.05084977]
[1766929554176,0.02439738,87969.0,87965.0,0.05084977]
[1766929554382,0.02439738,87968.0,87965.0,0.05084977]
[1766929554574,0.11837012,87971.0,87965.0,0.05084977]
[1766929554774,0.02439741,87970.0,87965.0,0.05084977]
[1766929554981,0.02439741,87969.0,87965.0,0.05084977]
[1766929555282,0.02439741,87968.0,87965.0,0.05084977]
[1766929555482,0.11837012,87971.0,87965.0,0.05084977]
[1766929555680,0.02439743,87970.0,87965.0,0.05084977]
[1766929555882,0.02439743,87969.0,87965.0,0.05084977]
[1766929556081,0.02439743,87968.0,87965.0,0.05084977]
[1766929556384,0.11837012,87971.0,87965.0,0.05084977]
[1766929556587,0.02439744,87970.0,87965.0,0.05084977]
[1766929556778,0.02439744,87969.0,87965.0,0.05084977]
[1766929556976,0.02439744,87968.0,87965.0,0.05084977]
[1766929557178,0.10699252,87971.0,87965.0,0.05084977]
[1766929557379,0.02439747,87970.0,87965.0,0.05084977]
[1766929557678,0.02439747,87969.0,87965.0,0.05084977]
[1766929557878,0.02439747,87968.0,87965.0,0.05084977]
[1766929558079,0.10699252,87971.0,87965.0,0.05084977]
[1766929558269,0.02439746,87970.0,87965.0,0.05084977]
[1766929558470,0.02439746,87969.0,87965.0,0.05084977]
[1766929558686,0.02439746,87968.0,87965.0,0.05084977]
[1766929558880,0.10699252,87971.0,87965.0,0.05084977]
[1766929559081,0.02439746,87970.0,87965.0,0.05084977]
[1766929559276,0.02439746,87969.0,87965.0,0.05084977]
[1766929559477,0.02439746,87968.0,87965.0,0.05084977]
[1766929559679,0.10699252,87971.0,87965.0,0.05084977]
[1766929559880,0.0243975,87970.0,87965.0,0.05084977]
[1766929560081,0.0243975,87969.0,87965.0,0.05084977]
[1766929560282,0.0243975,87968.0,87965.0,0.05084977]
[1766929560486,0.10699252,87971.0,87965.0,0.05084977]
[1766929560787,0.0243975,87970.0,87965.0,0.05084977]
[1766929560988,0.0243975,87969.0,87965.0,0.05084977]
[1766929561190,0.0243975,87968.0,87965.0,0.05084977]
[1766929561389,0.10699252,87971.0,87965.0,0.05084977]
[1766929561689,0.0243974,87970.0,87965.0,0.05084977]
[1766929561889,0.0243974,87969.0,87965.0,0.05084977]
[1766929562086,0.10699252,87971.0,87965.0,0.05084977]
[1766929562087,0.0243974,87968.0,87965.0,0.05084977]
[1766929562287,0.10699252,87971.0,87965.0,0.05084977]
[1766929562487,0.02439739,87970.0,87965.0,0.05084977]
[1766929562679,0.02439739,87969.0,87965.0,0.05084977]
[1766929562880,0.02439739,87968.0,87965.0,0.05084977]
[1766929563080,0.10699252,87971.0,87965.0,0.05084977]
[1766929563289,0.02439742,87970.0,87965.0,0.05084977]
[1766929563486,0.02439742,87969.0,87965.0,0.05084977]
[1766929563688,0.02439742,87968.0,87965.0,0.05084977]
[1766929563890,0.0113778,87970.0,87965.0,0.05084977]
[1766929564094,0.0243975,87969.0,87965.0,0.05084977]
[1766929564286,0.0357755,87968.0,87964.0,5e-08]
[1766929564485,0.0113783,87966.0,87962.0,9e-08]
[1766929564889,0.10699252,87971.0,87962.0,9e-08]
[1766929565088,0.011378,87968.0,87962.0,9e-08]
[1766929565291,0.02439809,87967.0,87962.0,9e-08]
[1766929565482,0.011378,87968.0,87962.0,9e-08]
[1766929569498,0.11837012,87971.0,87962.0,9e-08]
[1766929576806,0.06145012,87971.0,87962.0,9e-08]
[1766929577005,0.05692,87970.0,87962.0,9e-08]
[1766929577399,0.0243535,87969.0,87962.0,9e-08]
[1766929577696,0.0243535,87968.0,87962.0,9e-08]
[1766929577898,0.05692,87970.0,87962.0,9e-08]
[1766929578098,0.02435537,87969.0,87962.0,9e-08]
[1766929578301,0.02435537,87968.0,87962.0,9e-08]
[1766929578498,0.05692,87970.0,87962.0,9e-08]
[1766929578707,0.02435533,87969.0,87962.0,9e-08]
[1766929578907,0.02435533,87968.0,87962.0,9e-08]
[1766929579109,0.05692,87970.0,87962.0,9e-08]
[1766929579415,0.02435533,87969.0,87962.0,9e-08]
[1766929579616,0.02435533,87968.0,87962.0,9e-08]
[1766929579816,0.05692,87970.0,87962.0,9e-08]
[1766929580016,0.02435533,87969.0,87962.0,9e-08]
[1766929580316,0.02435533,87968.0,87962.0,9e-08]
[1766929580516,0.05692,87970.0,87962.0,9e-08]
[1766929580709,0.02435534,87969.0,87962.0,9e-08]
[1766929580909,0.02435534,87968.0,87962.0,9e-08]
[1766929581111,0.05692,87970.0,87962.0,9e-08]
[1766929581411,0.02435536,87969.0,87962.0,9e-08]
[1766929581609,0.02435536,87968.0,87962.0,9e-08]
[1766929581810,0.05692,87970.0,87962.0,9e-08]
[1766929582006,0.02435536,87969.0,87962.0,9e-08]
[1766929582311,0.02435536,87968.0,87962.0,9e-08]
[1766929582510,0.05692,87970.0,87962.0,9e-08]
[1766929582717,0.0243554,87969.0,87962.0,9e-08]
[1766929582917,0.0243554,87968.0,87962.0,9e-08]
[1766929583119,0.05692,87970.0,87962.0,9e-08]
[1766929583320,0.02435544,87969.0,87962.0,9e-08]
[1766929583512,0.02435544,87968.0,87962.0,9e-08]
[1766929583712,0.02435547,87967.0,87962.0,9e-08]
[1766929584021,0.02435547,87966.0,87962.0,9e-08]
[1766929584222,0.02435552,87965.0,87962.0,9e-08]
[1766929584520,0.05692,87970.0,87962.0,9e-08]
[1766929584720,0.02435555,87969.0,87962.0,9e-08]
[1766929584920,0.02435555,87968.0,87962.0,9e-08]
[1766929585114,0.02435555,87967.0,87962.0,9e-08]
[1766929585319,0.02435555,87966.0,87962.0,9e-08]
[1766929585522,0.02435555,87965.0,87962.0,9e-08]
[1766929585723,0.05692,87970.0,87962.0,9e-08]
[1766929585923,0.02435565,87969.0,87962.0,9e-08]
[1766929586222,0.02435565,87968.0,87962.0,9e-08]
[1766929586423,0.02435565,87967.0,87962.0,9e-08]
[1766929586725,0.02435565,87966.0,87962.0,9e-08]
[1766929587023,0.02435565,87965.0,87962.0,9e-08]
[1766929587223,0.05692,87970.0,87962.0,9e-08]
[1766929587523,0.02435594,87969.0,87962.0,9e-08]
[1766929587724,0.02435594,87968.0,87962.0,9e-08]
[1766929587923,0.02435594,87967.0,87962.0,9e-08]
[1766929588223,0.02435594,87966.0,87962.0,9e-08]
[1766929588423,0.02435594,87965.0,87962.0,9e-08]
[1766929588624,0.05692,87970.0,87962.0,9e-08]
[1766929588824,0.0243561,87969.0,87962.0,9e-08]
[1766929589028,0.0243561,87968.0,87962.0,9e-08]
[1766929589228,0.0243561,87967.0,87962.0,9e-08]
[1766929589526,0.0243561,87966.0,87962.0,9e-08]
[1766929589827,0.0243561,87965.0,87962.0,9e-08]
[1766929590016,0.05692,87970.0,87962.0,9e-08]
[1766929590218,0.02435631,87969.0,87962.0,9e-08]
[1766929590521,0.02435631,87968.0,87962.0,9e-08]
[1766929590722,0.02435631,87967.0,87962.0,9e-08]
[1766929591021,0.02435631,87966.0,87962.0,9e-08]
[1766929591220,0.02435631,87965.0,87962.0,9e-08]
[1766929591420,0.05692,87970.0,87962.0,9e-08]
[1766929591621,0.02435659,87969.0,87962.0,9e-08]
[1766929591822,0.02435659,87968.0,87962.0,9e-08]
[1766929592026,0.02435659,87967.0,87962.0,9e-08]
[1766929592218,0.02435659,87966.0,87962.0,9e-08]
[1766929592417,0.02435659,87965.0,87962.0,9e-08]
[1766929592618,0.05692,87970.0,87962.0,9e-08]
[1766929592817,0.02435696,87969.0,87962.0,9e-08]
[1766929593018,0.02435696,87968.0,87962.0,9e-08]
[1766929593326,0.02435696,87967.0,87962.0,9e-08]
[1766929593526,0.02435696,87966.0,87962.0,9e-08]
[1766929593731,0.05692,87970.0,87962.0,9e-08]
[1766929593923,0.02435754,87969.0,87962.0,9e-08]
[1766929594228,0.02435754,87968.0,87962.0,9e-08]
[1766929594430,0.05692,87970.0,87962.0,9e-08]
[1766929594629,0.0243585,87969.0,87962.0,9e-08]
[1766929594818,0.0243585,87968.0,87962.0,9e-08]
[1766929595016,0.05692,87970.0,87962.0,9e-08]
[1766929595220,0.0243585,87969.0,87962.0,9e-08]
[1766929595425,0.0243585,87968.0,87962.0,9e-08]
[1766929595721,0.05692,87970.0,87962.0,9e-08]
[1766929595921,0.02435851,87969.0,87962.0,9e-08]
[1766929596220,0.02435851,87968.0,87962.0,9e-08]
[1766929596416,0.05692,87970.0,87962.0,9e-08]
[1766929596628,0.02435851,87969.0,87962.0,9e-08]
[1766929596816,0.02435851,87968.0,87962.0,9e-08]
[1766929597031,0.05692,87970.0,87962.0,9e-08]
[1766929597218,0.02435851,87969.0,87962.0,9e-08]
[1766929597420,0.02435851,87968.0,87962.0,9e-08]
[1766929597630,0.05692,87970.0,87962.0,9e-08]
[1766929597830,0.0243585,87969.0,87962.0,9e-08]
[1766929598034,0.0243585,87968.0,87962.0,9e-08]
[1766929598232,0.05692,87970.0,87962.0,9e-08]
[1766929598529,0.02435851,87969.0,87962.0,9e-08]
[1766929598732,0.02435851,87968.0,87962.0,9e-08]
[1766929598933,0.05692,87970.0,87962.0,9e-08]
[1766929599231,0.02435851,87969.0,87962.0,9e-08]
[1766929599531,0.02435851,87968.0,87962.0,9e-08]
[1766929599732,0.05692,87970.0,87962.0,9e-08]
[1766929599931,0.02435852,87969.0,87962.0,9e-08]
[1766929600132,0.05692,87970.0,87962.0,9e-08]
[1766929600133,0.02435852,87968.0,87962.0,9e-08]
[1766929600324,0.05692,87970.0,87962.0,9e-08]
[1766929600524,0.0243585,87969.0,87962.0,9e-08]
[1766929600724,0.0243585,87968.0,87962.0,9e-08]
[1766929600925,0.05692,87970.0,87962.0,9e-08]
[1766929601222,0.0243585,87969.0,87962.0,9e-08]
[1766929601424,0.0243585,87968.0,87962.0,9e-08]
[1766929601624,0.05692,87970.0,87962.0,9e-08]
[1766929601826,0.02435849,87969.0,87962.0,9e-08]
[1766929602026,0.02435849,87968.0,87962.0,9e-08]
[1766929602225,0.05692,87970.0,87962.0,9e-08]
[1766929602434,0.02435848,87969.0,87962.0,9e-08]
[1766929602630,0.02435848,87968.0,87962.0,9e-08]
[1766929602833,0.05692,87970.0,87962.0,9e-08]
[1766929603131,0.02435849,87969.0,87962.0,9e-08]
[1766929603331,0.02435849,87968.0,87962.0,9e-08]
[1766929603533,0.05692,87970.0,87962.0,9e-08]
[1766929603728,0.02435848,87969.0,87962.0,9e-08]
[1766929604034,0.02435848,87968.0,87962.0,9e-08]
[1766929604235,0.02435848,87967.0,87962.0,9e-08]
[1766929604435,0.05692,87970.0,87962.0,9e-08]
[1766929604635,0.02435847,87969.0,87962.0,9e-08]
[1766929604837,0.02435847,87968.0,87962.0,9e-08]
[1766929605028,0.02435847,87967.0,87962.0,9e-08]
[1766929605334,0.05692,87970.0,87962.0,9e-08]
[1766929605527,0.02435847,87969.0,87962.0,9e-08]
[1766929605731,0.02435847,87968.0,87962.0,9e-08]
[1766929605937,0.02435847,87967.0,87962.0,9e-08]
[1766929606236,0.05692,87970.0,87962.0,9e-08]
[1766929606435,0.02435846,87969.0,87962.0,9e-08]
[1766929606635,0.02435846,87968.0,87962.0,9e-08]
[1766929606836,0.02435846,87967.0,87962.0,9e-08]
[1766929607037,0.05692,87970.0,87962.0,9e-08]
[1766929607243,0.02435846,87969.0,87962.0,9e-08]
[1766929607442,0.02435846,87968.0,87962.0,9e-08]
[1766929607741,0.02435846,87967.0,87962.0,9e-08]
[1766929608035,0.05692,87970.0,87962.0,9e-08]
[1766929608335,0.02434448,87969.0,87962.0,9e-08]
[1766929608636,0.02434448,87968.0,87962.0,9e-08]
[1766929608836,0.02434448,87967.0,87962.0,9e-08]
[1766929609138,0.05692,87970.0,87962.0,9e-08]
[1766929609334,0.02434449,87969.0,87962.0,9e-08]
[1766929609539,0.02434449,87968.0,87962.0,9e-08]
[1766929609742,0.02434449,87967.0,87962.0,9e-08]
[1766929609939,0.05692,87970.0,87962.0,9e-08]
[1766929610141,0.02434449,87969.0,87962.0,9e-08]
[1766929610341,0.02434449,87968.0,87962.0,9e-08]
[1766929610639,0.02434449,87967.0,87962.0,9e-08]
[1766929610839,0.05692,87970.0,87962.0,9e-08]
[1766929611043,0.02434448,87969.0,87962.0,9e-08]
[1766929611242,0.02434448,87968.0,87962.0,9e-08]
[1766929611443,0.02434448,87967.0,87962.0,9e-08]
[1766929611644,0.05692,87970.0,87962.0,9e-08]
[1766929611844,0.02434449,87969.0,87962.0,9e-08]
[1766929612042,0.02434449,87968.0,87962.0,9e-08]
[1766929612247,0.02434449,87967.0,87962.0,9e-08]
[1766929612442,0.05692,87970.0,87962.0,9e-08]
[1766929612741,0.0243445,87969.0,87962.0,9e-08]
[1766929612940,0.0243445,87968.0,87962.0,9e-08]
[1766929613141,0.0243445,87967.0,87962.0,9e-08]
[1766929613342,0.05692,87970.0,87962.0,9e-08]
[1766929613548,0.02434451,87969.0,87962.0,9e-08]
[1766929613743,0.02434451,87968.0,87962.0,9e-08]
[1766929614045,0.02434451,87967.0,87962.0,9e-08]
[1766929614248,0.05692,87970.0,87962.0,9e-08]
[1766929614445,0.02434451,87969.0,87962.0,9e-08]
[1766929614744,0.02434451,87968.0,87962.0,9e-08]
[1766929614945,0.02434451,87967.0,87962.0,9e-08]
[1766929615145,0.05692,87970.0,87962.0,9e-08]
[1766929615446,0.02434452,87969.0,87962.0,9e-08]
[1766929615639,0.02434452,87968.0,87962.0,9e-08]
[1766929615840,0.02434452,87967.0,87962.0,9e-08]
[1766929616040,0.05692,87970.0,87962.0,9e-08]
[1766929616238,0.02434452,87969.0,87962.0,9e-08]
[1766929616438,0.02434452,87968.0,87962.0,9e-08]
[1766929616635,0.02434452,87967.0,87962.0,9e-08]
[1766929616846,0.05692,87970.0,87962.0,9e-08]
[1766929617048,0.02434453,87969.0,87962.0,9e-08]
[1766929617233,0.02434453,87968.0,87962.0,9e-08]
[1766929617440,0.02434453,87967.0,87962.0,9e-08]
[1766929617738,0.05692,87970.0,87962.0,9e-08]
[1766929617936,0.02434454,87969.0,87962.0,9e-08]
[1766929618139,0.02434454,87968.0,87962.0,9e-08]
[1766929618347,0.02434454,87967.0,87962.0,9e-08]
[1766929618648,0.05692,87970.0,87962.0,9e-08]
[1766929618848,0.02434453,87969.0,87962.0,9e-08]
[1766929619048,0.02434453,87968.0,87962.0,9e-08]
[1766929619249,0.02434453,87967.0,87962.0,9e-08]
[1766929619547,0.05692,87970.0,87962.0,9e-08]
[1766929619848,0.02434455,87969.0,87962.0,9e-08]
[1766929620048,0.02434455,87968.0,87962.0,9e-08]
[1766929620247,0.02434455,87967.0,87962.0,9e-08]
[1766929620547,0.05692,87970.0,87962.0,9e-08]
[1766929620752,0.02434457,87969.0,87962.0,9e-08]
[1766929620938,0.02434457,87968.0,87962.0,9e-08]
[1766929621140,0.02434457,87967.0,87962.0,9e-08]
[1766929621338,0.05692,87970.0,87962.0,9e-08]
[1766929621551,0.02434458,87969.0,87962.0,9e-08]
[1766929621751,0.02434458,87968.0,87962.0,9e-08]
[1766929621950,0.02434458,87967.0,87962.0,9e-08]
[1766929622151,0.05692,87970.0,87962.0,9e-08]
[1766929622352,0.02434458,87969.0,87961.0,3.19e-06]
[1766929622554,0.02434458,87968.0,87959.0,0.00109612]
[1766929622744,0.02434458,87967.0,87959.0,0.00109612]
[1766929622942,0.05692,87970.0,87959.0,0.00109612]
[1766929623153,0.02434458,87969.0,87959.0,0.00109612]
[1766929623354,0.02434458,87968.0,87959.0,0.00109612]
[1766929623652,0.02434458,87967.0,87959.0,0.00109612]
[1766929623953,0.05692,87970.0,87959.0,0.00109612]
[1766929624156,0.02434458,87969.0,87959.0,0.00109612]
[1766929624454,0.02434458,87968.0,87959.0,0.00109612]
[1766929624654,0.02434458,87967.0,87959.0,0.00109612]
[1766929624953,0.05692,87970.0,87959.0,0.00109612]
[1766929625154,0.02434461,87969.0,87959.0,0.00109612]
[1766929625451,0.02434461,87968.0,87959.0,0.00109612]
[1766929625640,0.02434461,87967.0,87959.0,0.00109612]
[1766929625840,0.05692,87970.0,87959.0,0.00109612]
[1766929626049,0.02434464,87969.0,87959.0,0.00109612]
[1766929626250,0.02434464,87968.0,87959.0,0.00109612]
[1766929626452,0.02434464,87967.0,87959.0,0.00109612]
[1766929626651,0.05692,87970.0,87959.0,0.00109612]
[1766929626852,0.02434464,87969.0,87959.0,0.00109612]
[1766929627151,0.02434464,87968.0,87959.0,0.00109612]
[1766929627352,0.02434464,87967.0,87959.0,0.00109612]
[1766929627559,0.05692,87970.0,87959.0,0.00109612]
[1766929627748,0.02434463,87969.0,87959.0,0.00109612]
[1766929627940,0.02434463,87968.0,87959.0,0.00109612]
[1766929628144,0.02434463,87967.0,87959.0,0.00109612]
[1766929628357,0.05692,87970.0,87959.0,0.00109612]
[1766929628554,0.02434463,87969.0,87959.0,0.00109612]
[1766929628756,0.02434463,87968.0,87959.0,0.00109612]
[1766929628950,0.02434463,87967.0,87959.0,0.00109612]
[1766929629149,0.05692,87970.0,87959.0,0.00109612]
[1766929629349,0.02434463,87969.0,87959.0,0.00109612]
[1766929629549,0.02434463,87968.0,87959.0,0.00109612]
[1766929629752,0.02434463,87967.0,87959.0,0.00109612]
[1766929630050,0.05692,87970.0,87959.0,0.00109612]
[1766929630252,0.02434463,87969.0,87959.0,0.00109612]
[1766929630558,0.02434463,87968.0,87959.0,0.00109612]
[1766929630757,0.02434463,87967.0,87959.0,0.00109612]
[1766929630961,0.05692,87970.0,87959.0,0.00109612]
[1766929631260,0.02434463,87969.0,87959.0,0.00109612]
[1766929631459,0.02434463,87968.0,87959.0,0.00109612]
[1766929631659,0.02434463,87967.0,87957.0,0.00131068]
[1766929631862,0.05692,87970.0,87957.0,0.00131068]
[1766929632056,0.02434463,87969.0,87861.0,0.49179139]
[1766929632257,0.02434463,87968.0,87956.0,0.0066249]
[1766929632459,0.02434463,87967.0,87956.0,0.0066249]
[1766929632660,0.05692,87970.0,87956.0,0.0066249]
[1766929632863,0.02434463,87969.0,87953.0,0.0128073]
[1766929633048,0.02434463,87968.0,87953.0,0.0128073]
[1766929633252,0.02434463,87967.0,87956.0,0.09268545]
[1766929633457,0.05692,87970.0,87956.0,0.08668545]
[1766929633762,0.02434464,87969.0,87956.0,0.08668545]
[1766929633961,0.02434464,87968.0,87956.0,0.08668545]
[1766929634265,0.02434464,87967.0,87956.0,0.08668545]
[1766929634563,0.02434464,87966.0,87954.0,0.03095858]
[1766929634755,0.02434464,87965.0,87954.0,0.01895858]
[1766929634955,0.02434464,87964.0,87954.0,0.01295858]
[1766929635155,0.0113782,87967.0,87954.0,0.01295858]
[1766929635369,0.0243454,87966.0,87955.0,0.1136861]
[1766929635660,0.0243454,87965.0,87955.0,0.1136861]
[1766929635861,0.0243454,87964.0,87955.0,0.1136861]
[1766929636063,0.0682978,87970.0,87955.0,0.1136861]
[1766929636258,0.02434401,87969.0,87955.0,0.1136861]
[1766929636455,0.02434401,87968.0,87955.0,0.1136861]
[1766929636758,0.02434401,87967.0,87955.0,0.1136861]
[1766929636958,0.02434401,87966.0,87955.0,0.1136861]
[1766929637162,0.02434401,87965.0,87955.0,0.1136861]
[1766929637361,0.02434401,87964.0,87955.0,0.1136861]
[1766929637562,0.0682978,87970.0,87955.0,0.1136861]
[1766929637767,0.02434298,87969.0,87955.0,0.1136861]
[1766929637964,0.02434298,87968.0,87955.0,0.1136861]
[1766929638162,0.02434298,87967.0,87955.0,0.1136861]
[1766929638463,0.02434298,87966.0,87955.0,0.1136861]
[1766929638664,0.02434298,87965.0,87955.0,0.1136861]
[1766929638864,0.02434298,87964.0,87955.0,0.1136861]
[1766929639066,0.0682978,87970.0,87955.0,0.1136861]
[1766929639363,0.02443026,87969.0,87955.0,0.1136861]
[1766929639551,0.02443026,87968.0,87955.0,0.1136861]
[1766929639755,0.02443026,87967.0,87955.0,0.1136861]
[1766929639960,0.02443026,87966.0,87955.0,0.1136861]
[1766929640159,0.02443026,87965.0,87955.0,0.1136861]
[1766929640360,0.02443026,87964.0,87955.0,0.1136861]
[1766929640569,0.0682978,87970.0,87955.0,0.1136861]
[1766929640762,0.02442976,87969.0,87955.0,0.1136861]
[1766929640963,0.02442976,87968.0,87955.0,0.1136861]
[1766929641163,0.02442976,87967.0,87955.0,0.1136861]
[1766929641362,0.02442976,87966.0,87955.0,0.1136861]
[1766929641565,0.02442976,87965.0,87955.0,0.1136861]
[1766929641766,0.0682978,87970.0,87955.0,0.1136861]
[1766929641967,0.02442938,87969.0,87955.0,0.1136861]
[1766929642267,0.0682978,87970.0,87955.0,0.1136861]
[1766929642268,0.02442938,87968.0,87955.0,0.1136861]
[1766929642468,0.02442938,87967.0,87955.0,0.1136861]
[1766929642670,0.02442938,87966.0,87955.0,0.1136861]
[1766929642880,0.02442938,87965.0,87955.0,0.1136861]
[1766929643173,0.0682978,87970.0,87955.0,0.1136861]
[1766929643469,0.0244293,87969.0,87955.0,0.1136861]
[1766929643670,0.0244293,87968.0,87955.0,0.1136861]
[1766929643970,0.0244293,87967.0,87955.0,0.1136861]
[1766929644164,0.011378,87968.0,87955.0,0.1136861]
[1766929644365,0.02442924,87967.0,87955.0,0.1136861]
[1766929644562,0.02442947,87966.0,87955.0,0.0566861]
[1766929644766,0.05692,87970.0,87952.0,0.08020696]
[1766929644767,0.03580835,87965.0,87952.0,0.08020696]
[1766929644970,0.0113784,87965.0,87952.0,0.08020696]
[1766929650984,0.02442491,87964.0,87952.0,0.08020696]
[1766929651178,0.0113784,87965.0,87952.0,0.08020696]
[1766929651382,0.0244236,87964.0,87952.0,0.08020696]
[1766929651580,0.0113784,87965.0,87952.0,0.08020696]
[1766929651771,0.0244236,87964.0,87952.0,0.08020696]
[1766929651972,0.0113784,87965.0,87952.0,0.08020696]
[1766929652281,0.0244236,87964.0,87952.0,0.08020696]
[1766929652481,0.0113784,87965.0,87952.0,0.08020696]
[1766929652670,0.02442258,87964.0,87952.0,0.08020696]
[1766929652871,0.0113784,87965.0,87952.0,0.08020696]
[1766929653078,0.02442258,87964.0,87952.0,0.08020696]
[1766929653282,0.0113786,87963.0,87952.0,0.08020696]
[1766929656377,0.0113783,87966.0,87952.0,0.00148696]
[1766929656585,0.02442017,87965.0,87952.0,0.00148696]
[1766929656773,0.02442017,87964.0,87952.0,0.00148696]
[1766929656974,0.0113783,87966.0,87952.0,0.00148696]
[1766929657174,0.02442017,87965.0,87952.0,0.00148696]
[1766929657373,0.02442017,87964.0,87952.0,0.00148696]
[1766929657575,0.0113783,87966.0,87952.0,0.00148696]
[1766929657776,0.02441983,87965.0,87952.0,0.00148696]
[1766929657972,0.02441983,87964.0,87952.0,0.00148696]